fUST/lending_fUST_20251230
["ID","MTS","AMOUNT","RATE_DAILY","PERIOD"]
[400092496,1767090638768,-500.0,0.00018376,2]
[400092497,1767090638777,-1000.0,0.00018377,2]
[400092498,1767090638787,-500.0,0.00018915,2]
[400092499,1767090638800,-1763.27546864,0.00018935,2]
[400092500,1767090638810,-500.0,0.00018993,2]
[400092501,1767090638820,-24099.602135,0.00018994,2]
[400092502,1767090638830,-231.0,0.0001914,2]
[400092503,1767090638840,-1000.0,0.000194,2]
[400092504,1767090638850,-5584.51537942,0.00019535,2]
[400092505,1767090638862,-624.35729079,0.00019732,2]
[400092506,1767090638871,-770.10278784,0.0002,2]
[400092507,1767090638881,-1000.0,0.00020214,2]
[400092508,1767090638891,-244.0,0.00020214,2]
[400092509,1767090638900,-500.0,0.0002078,2]
[400092510,1767090638910,-159.88,0.000208,2]
[400092511,1767090638920,-258.0,0.0002114,2]
[400092512,1767090638930,-235.19825001,0.00021492,2]
[400092513,1767090638939,-5584.51537942,0.00021518,2]
[400092514,1767090638949,-1041.66666667,0.00021916,2]
[400092515,1767090638959,-1000.0,0.00021917,2]
[400092516,1767090638968,-500.0,0.00021917,2]
[400092517,1767090638978,-188.88683,0.00021918,2]
[400092518,1767090638987,-170.19,0.00022,7]
[400092519,1767090638997,-1763.27546864,0.00022016,2]
[400092520,1767090639006,-1000.0,0.00022191,2]
[400092521,1767090639015,-393.84528849,0.00022191,2]
[400092522,1767090639025,-1000.0,0.00022236,10]
[400092523,1767090639034,-492.0,0.00022236,10]
[400092524,1767090639044,-1000.0,0.00022465,2]
[400092525,1767090639054,-1000.0,0.00022739,2]
[400092526,1767090639063,-500.0,0.00023,2]
[400092527,1767090639073,-1078.31409123,0.00023013,2]
[400092528,1767090639083,-285.0,0.0002314,2]
[400092529,1767090639092,-5584.51537942,0.00023502,2]
[400092530,1767090639101,-500.0,0.00023999,2]
[400092531,1767090639111,-3073.0,0.00024,2]
[400092532,1767090639121,-165.31246272,0.00024,6]
[400092533,1767090639131,-1000.0,0.00024459,10]
[400092534,1767090639140,-791.0,0.00024459,10]
[400092535,1767090639150,-1347.84029464,0.000248,2]
[400092536,1767090639159,-10838.6709177,0.000249,2]
[400092537,1767090639168,-10000.0,0.00024978,2]
[400092538,1767090639178,-10838.6709177,0.0002498,2]
[400092539,1767090639187,-1347.84029464,0.0002498,2]
[400092540,1767090639196,-500.0,0.00024989,2]
[400092541,1767090639206,-500.0,0.00024989,2]
[400092542,1767090639215,-500.0,0.00024989,2]
[400092543,1767090639224,-500.0,0.00024989,2]
[400092544,1767090639234,-27096.6772942,0.0002499,2]
[400092545,1767090639243,-3369.6007366,0.0002499,2]
[400092546,1767090639252,-500.0,0.00024999,2]
[400092547,1767090639262,-500.0,0.00024999,2]
[400092548,1767090639271,-500.0,0.00024999,2]
[400092549,1767090639281,-61.73134375,0.00024999,2]
[400092550,1767090639294,-438.26865625,0.00024999,2]
[400092551,1767090639303,-226.80281086,0.00024999,2]
[400092552,1767090639313,-227900.00000091,0.00025,2]
[400092553,1767090639322,-983.35,0.00025,14]
[400092554,1767090639331,-3660.71,0.00025,2]
[400092555,1767090639341,-1763.27546864,0.00025098,2]
[400092557,1767090639350,-312.0,0.0002514,2]
[400092558,1767090639359,-5584.51537942,0.00025486,2]
[400092559,1767090639368,-5000.0,0.00025512,2]
[400092560,1767090639378,-4440.0,0.00025828,2]
[400092561,1767090639387,-1250.0,0.0002587,2]
[400092562,1767090639396,-39311.06823747,0.00026,30]
[400092563,1767090639406,-170.19,0.000264,7]
[400092564,1767090639416,-439.0,0.00026456,7]
[400092565,1767090639425,-571.11045854,0.00026484,2]
[400092566,1767090639434,-439.0,0.00026831,2]
[400092567,1767090639443,-1000.0,0.00026905,30]
[400092568,1767090639452,-1000.0,0.00026905,30]
[400092569,1767090639461,-1000.0,0.00027,2]
[400092570,1767090639470,-3660.71,0.000271,2]
[400092571,1767090639480,-339.0,0.0002714,2]
[400092572,1767090639489,-439.0,0.00027153,2]
[400092573,1767090639498,-151.0,0.000272,12]
[400092574,1767090639508,-439.0,0.00027272,2]
[400092575,1767090639517,-5419.33545884,0.00027278,2]
[400092576,1767090639526,-673.92014732,0.00027278,2]
[400092577,1767090639536,-7855.9782018,0.00027288,2]
[400092578,1767090639545,-315.6498578,0.00027288,2]
[400092579,1767090639554,-23010.7420923,0.00027288,2]
[400092580,1767090639563,-2078.4915284,0.00027288,2]
[400092581,1767090639572,-1003.4263837,0.00027288,2]
[400092582,1767090639581,-5000.0,0.00027369,2]
[400092583,1767090639590,-261.24,0.00027397,12]
[400092584,1767090639600,-5584.51537942,0.00027469,2]
[400092585,1767090639609,-439.0,0.00027502,2]
[400092586,1767090639619,-439.0,0.00027523,7]
[400092587,1767090639628,-151.37234462,0.00027588,2]
[400092588,1767090639638,-151.0,0.000276,19]
[400092589,1767090639648,-386419.62888222,0.0002772,2]
[400092671,1767091469949,1319.29997572,0.00012771,2]
[400092672,1767091540689,321.3305062,0.00028767,120]
[400092704,1767091732334,440.65,0.00028767,120]
[400092750,1767091838045,-606.0,0.0001314,2]
[400092751,1767091838055,-527.40146597,0.00013273,2]
[400092752,1767091838065,-488.21037431,0.00013273,2]
[400092753,1767091838075,-211.6742,0.00013561,2]
[400092754,1767091838085,-300.0,0.00013673,2]
[400092755,1767091838095,-458.51216997,0.00013698,2]
[400092756,1767091838105,-300.0,0.00013698,2]
[400092757,1767091838116,-300.0,0.00013698,2]
[400092758,1767091838126,-300.0,0.00013698,2]
[400092759,1767091838136,-15169.77221228,0.00013699,2]
[400092760,1767091838146,-501.79050549,0.00013699,2]
[400092761,1767091838155,-500.0,0.00013699,2]
[400092762,1767091838165,-500.0,0.00013699,2]
[400092763,1767091838175,-500.0,0.00013699,2]
[400092764,1767091838186,-500.0,0.00013699,2]
[400092765,1767091838196,-500.0,0.00013699,2]
[400092766,1767091838207,-500.0,0.00013699,2]
[400092767,1767091838217,-152.91,0.00013699,2]
[400092768,1767091838227,-1002.36383556,0.00014247,2]
[400092770,1767091838237,-1000.0,0.00014247,2]
[400092772,1767091838246,-1011.97065526,0.00014247,2]
[400092773,1767091838256,-1000.0,0.00014247,2]
[400092774,1767091838267,-1135.30832269,0.00014247,2]
[400092775,1767091838276,-1001.28240001,0.00014247,2]
[400092776,1767091838287,-600.0,0.0001453,2]
[400092777,1767091838297,-177.0,0.00015206,2]
[400092778,1767091838307,-2795.32886605,0.00015753,2]
[400092779,1767091838317,-5246.6371833,0.00015884,2]
[400092780,1767091838327,-720.0,0.00015984,2]
[400092781,1767091838337,-3074.86947579,0.00016036,2]
[400092782,1767091838347,-437.39550768,0.00016176,2]
[400092783,1767091838357,-435.27187251,0.00016176,2]
[400092784,1767091838367,-529.9142066,0.00016177,2]
[400092785,1767091838376,-229.9580503,0.00016431,2]
[400092786,1767091838386,-204.0,0.00017206,2]
[400092787,1767091838396,-864.0,0.00017582,2]
[400092788,1767091838406,-2795.32886605,0.00017716,2]
[400092789,1767091838415,-5246.63718327,0.00018963,2]
[400092790,1767091838426,-582.24197838,0.00019178,2]
[400092791,1767091838435,-231.0,0.00019206,2]
[400092792,1767091838447,-1000.0,0.0001934,2]
[400092793,1767091838458,-1000.0,0.000194,2]
[400092794,1767091838468,-707.87538668,0.00019547,2]
[400092795,1767091838477,-999.24742259,0.00019678,2]
[400092796,1767091838487,-2795.32886605,0.00019679,2]
[400092797,1767091838498,-1000.0,0.00019776,2]
[400092798,1767091838508,-153.15,0.00020666,2]
[400092799,1767091838519,-500.0,0.00020989,2]
[400092800,1767091838529,-500.0,0.00020989,2]
[400092801,1767091838539,-241.67722023,0.00020989,2]
[400092802,1767091838549,-500.0,0.00020989,2]
[400092803,1767091838559,-444.13063296,0.00020989,2]
[400092804,1767091838569,-500.0,0.00020989,2]
[400092805,1767091838579,-500.0,0.00020989,2]
[400092806,1767091838589,-500.0,0.00020989,2]
[400092807,1767091838599,-500.0,0.00020989,2]
[400092808,1767091838608,-500.0,0.00020989,2]
[400092809,1767091838618,-500.0,0.00020989,2]
[400092810,1767091838628,-500.0,0.00020989,2]
[400092811,1767091838637,-500.0,0.00020989,2]
[400092812,1767091838647,-500.0,0.00020989,2]
[400092813,1767091838657,-500.0,0.00020989,2]
[400092814,1767091838667,-500.0,0.00020989,2]
[400092815,1767091838676,-500.0,0.00020989,2]
[400092816,1767091838686,-500.0,0.00020989,2]
[400092817,1767091838696,-500.0,0.00020989,2]
[400092818,1767091838706,-524.09817704,0.00020989,2]
[400092819,1767091838715,-96037.67640377,0.0002099,2]
[400092820,1767091838726,-258.0,0.00021206,2]
[400092821,1767091838736,-1000.0,0.00021274,10]
[400092822,1767091838745,-244.0,0.00021274,10]
[400092823,1767091838756,-2795.32886605,0.00021642,2]
[400092824,1767091838766,-151.37234462,0.00021643,2]
[400092825,1767091838780,-276.82258479,0.00021709,2]
[400092826,1767091838791,-449.27806925,0.000219,2]
[400092827,1767091838801,-500.0,0.00021917,2]
[400092828,1767091838811,-500.0,0.00021917,2]
[400092829,1767091838821,-500.0,0.00021917,2]
[400092830,1767091838831,-205.42464996,0.0002195,2]
[400092831,1767091838841,-200.0,0.0002195,2]
[400092832,1767091838851,-200.0,0.0002195,2]
[400092833,1767091838860,-200.0,0.0002195,2]
[400092834,1767091838870,-1041.66666667,0.0002195,2]
[400092835,1767091838880,-297085.02692722,0.00021987,2]
[400092836,1767091838890,-416825.51416511,0.00022,10]
[400092862,1767091840302,-477.4397096,0.00022,10]
[400092868,1767091840355,-71930.1381803,0.00022,10]
[400092949,1767091846385,-14616.5141023,0.00022,10]
[400092953,1767092168149,201.220616,0.00018189,120]
[400093002,1767093032157,-300.0,0.00013271,2]
[400093004,1767093032167,-608.0,0.00013271,2]
[400093006,1767093032176,-1200.0,0.00013272,2]
[400093008,1767093032186,-300.0,0.00013272,2]
[400093010,1767093032195,-300.0,0.00013272,2]
[400093012,1767093032204,-300.0,0.00013272,2]
[400093014,1767093032213,-500.0,0.00013273,2]
[400093016,1767093032222,-500.0,0.00013273,2]
[400093017,1767093032231,-500.0,0.00013273,2]
[400093019,1767093032240,-500.0,0.00013273,2]
[400093022,1767093032249,-499.21831593,0.00013273,2]
[400093025,1767093032259,-10984.07406547,0.00013273,2]
[400093028,1767093032269,-169.65965058,0.00013273,2]
[400093031,1767093032278,-300.0,0.00013536,2]
[400093034,1767093032287,-600.0,0.00013537,2]
[400093037,1767093032296,-667.141516,0.00013699,2]
[400093040,1767093032306,-291.67523452,0.00013699,2]
[400093042,1767093032315,-150.47425994,0.00014175,2]
[400093044,1767093032324,-420.0,0.0001455,2]
[400093046,1767093032334,-1200.0,0.00014551,2]
[400093048,1767093032343,-252.0,0.00014599,2]
[400093050,1767093032352,-720.0,0.00014891,2]
[400093052,1767093032361,-177.0,0.00015272,2]
[400093054,1767093032371,-1781.41759754,0.00015753,2]
[400093056,1767093032380,-587.0,0.00015952,2]
[400093057,1767093032390,-864.0,0.0001638,2]
[400093059,1767093032400,-1866.2422661,0.0001709,2]
[400093061,1767093032409,-204.0,0.00017272,2]
[400093063,1767093032419,-290.0,0.00017489,2]
[400093065,1767093032428,-1781.41759754,0.00017716,2]
[400093067,1767093032438,-1000.0,0.00018018,2]
[400093069,1767093032447,-201.220616,0.00018189,2]
[400093071,1767093032456,-198.66,0.0001918,2]
[400093073,1767093032465,-231.0,0.00019272,2]
[400093075,1767093032474,-1781.41759754,0.00019679,2]
[400093077,1767093032484,-1000.0,0.0001982,2]
[400093078,1767093032492,-244.0,0.0001982,2]
[400093080,1767093032501,-317.3839542,0.00020052,2]
[400093082,1767093032511,-667.141516,0.00020187,2]
[400093084,1767093032520,-248.32,0.0002055,2]
[400093086,1767093032530,-2140.68490732,0.00021199,2]
[400093088,1767093032540,-258.0,0.00021272,2]
[400093090,1767093032549,-2140.68490732,0.00021614,2]
[400093092,1767093032558,-1781.41759754,0.00021642,2]
[400093094,1767093032567,-1000.0,0.00021802,10]
[400093096,1767093032576,-492.0,0.00021802,10]
[400093098,1767093032586,-500.0,0.00021852,2]
[400093100,1767093032596,-500.0,0.00021852,2]
[400093102,1767093032605,-500.0,0.00021852,2]
[400093104,1767093032614,-500.0,0.00021852,2]
[400093106,1767093032623,-232.33456768,0.00021852,2]
[400093108,1767093032633,-530.53014002,0.00021852,2]
[400093110,1767093032643,-500.0,0.00021852,2]
[400093112,1767093032652,-500.0,0.00021852,2]
[400093114,1767093032661,-479.4579352,0.00021852,2]
[400093116,1767093032671,-500.0,0.00021852,2]
[400093118,1767093032680,-500.0,0.00021852,2]
[400093120,1767093032689,-500.0,0.00021852,2]
[400093122,1767093032698,-500.0,0.00021852,2]
[400093124,1767093032707,-500.0,0.00021852,2]
[400093126,1767093032716,-500.0,0.00021852,2]
[400093128,1767093032724,-431.67554321,0.00021852,2]
[400093129,1767093032733,-500.0,0.00021852,2]
[400093131,1767093032742,-500.0,0.00021853,2]
[400093133,1767093032751,-500.0,0.00021854,2]
[400093135,1767093032760,-908.4410556,0.00021855,2]
[400093136,1767093032769,-5839.6858906,0.00021855,2]
[400093138,1767093032778,-329.7690604,0.00021855,2]
[400093140,1767093032787,-236.7373933,0.00021855,2]
[400093142,1767093032796,-2140.68490732,0.00021878,2]
[400093144,1767093032805,-894.3685583,0.00021917,2]
[400093145,1767093032814,-998.01,0.00021917,2]
[400093147,1767093032823,-500.0,0.00021917,2]
[400093148,1767093032832,-500.0,0.00021917,2]
[400093149,1767093032841,-425.3251123,0.00021917,2]
[400093150,1767093032850,-500.0,0.00021917,2]
[400093151,1767093032859,-169.60907689,0.00021917,2]
[400093152,1767093032868,-501.10644483,0.00021917,2]
[400093153,1767093032877,-500.0,0.00021917,2]
[400093154,1767093032886,-500.0,0.00021917,2]
[400093155,1767093032895,-1216.12,0.00021917,2]
[400093156,1767093032904,-500.0,0.00021917,2]
[400093157,1767093032913,-1000.0,0.00021917,2]
[400093158,1767093032922,-500.0,0.00021917,2]
[400093159,1767093032931,-500.0,0.00021917,2]
[400093160,1767093032940,-500.0,0.00021917,2]
[400093161,1767093032949,-500.0,0.00021917,2]
[400093162,1767093032958,-500.0,0.00021917,2]
[400093163,1767093032966,-500.0,0.00021917,2]
[400093164,1767093032976,-500.0,0.00021917,2]
[400093165,1767093032985,-500.0,0.00021917,2]
[400093166,1767093032994,-223.69019589,0.00021917,2]
[400093167,1767093033003,-500.0,0.00021917,2]
[400093168,1767093033012,-232.92010454,0.00021917,2]
[400093169,1767093033021,-500.0,0.00021917,2]
[400093170,1767093033030,-500.0,0.00021917,2]
[400093171,1767093033039,-1195.7,0.00021917,2]
[400093172,1767093033050,-500.0,0.00021917,2]
[400093173,1767093033058,-500.50013322,0.00021917,2]
[400093174,1767093033068,-229.70253267,0.00021917,2]
[400093175,1767093033077,-534.62451166,0.00021917,2]
[400093176,1767093033086,-297.99,0.0002192,2]
[400093177,1767093033098,-200.0,0.0002195,2]
[400093178,1767093033107,-1041.66666667,0.0002195,2]
[400093179,1767093033116,-160.0,0.00021972,2]
[400093180,1767093033125,-414.79417256,0.00021974,2]
[400093181,1767093033135,-165.07146711,0.00021995,2]
[400093182,1767093033144,-10000.0,0.00021998,2]
[400093183,1767093033154,-288.75516453,0.00021999,2]
[400093184,1767093033163,-500.0,0.00021999,2]
[400093185,1767093033172,-441.57620913,0.00021999,2]
[400093186,1767093033181,-500.0,0.00021999,2]
[400093187,1767093033190,-500.0,0.00021999,2]
[400093188,1767093033199,-500.0,0.00021999,2]
[400093189,1767093033209,-500.0,0.00021999,2]
[400093190,1767093033217,-500.0,0.00021999,2]
[400093191,1767093033226,-500.0,0.00021999,2]
[400093192,1767093033235,-500.0,0.00021999,2]
[400093193,1767093033244,-500.0,0.00021999,2]
[400093194,1767093033254,-500.0,0.00021999,2]
[400093195,1767093033263,-500.0,0.00021999,2]
[400093196,1767093033272,-500.0,0.00021999,2]
[400093197,1767093033281,-500.0,0.00021999,2]
[400093198,1767093033290,-500.0,0.00021999,2]
[400093199,1767093033299,-500.0,0.00021999,2]
[400093200,1767093033308,-500.0,0.00021999,2]
[400093201,1767093033317,-500.0,0.00021999,2]
[400093202,1767093033327,-500.0,0.00021999,2]
[400093203,1767093033336,-368.26602206,0.00021999,2]
[400093204,1767093033345,-96150.39384269,0.00022,10]
[400093205,1767093033355,-342873.59661694,0.00022,30]
[400093206,1767093033367,-6785.62857277,0.00022,30]
[400093207,1767093033379,-1667.7762393,0.00022,30]
[400093212,1767093038284,-148672.99857099,0.00022,30]
[400093213,1767093038293,-90000.0,0.00022,30]
[400093214,1767093038303,-1395.06,0.00022,14]
[400093215,1767093038312,-7202.36,0.00022,2]
[400093216,1767093038321,-156.87,0.00022,7]
[400093217,1767093038331,-163.75,0.00022,7]
[400093218,1767093038341,-436.38,0.00022,7]
[400093219,1767093038351,-166.0,0.00022,3]
[400093220,1767093038360,-172.0,0.00022,3]
[400093221,1767093038370,-894.3685583,0.00022191,2]
[400093222,1767093038379,-998.01,0.00022191,2]
[400093223,1767093038388,-500.0,0.00022191,2]
[400093224,1767093038398,-500.0,0.00022191,2]
[400093225,1767093038407,-598.56632729,0.00022191,2]
[400093226,1767093038416,-500.0,0.00022191,2]
[400093227,1767093038425,-500.0,0.00022191,2]
[400093228,1767093038435,-1216.12,0.00022191,2]
[400093229,1767093038444,-500.0,0.00022191,2]
[400093230,1767093038453,-1000.0,0.00022191,2]
[400093231,1767093038463,-500.0,0.00022191,2]
[400093232,1767093038472,-500.0,0.00022191,2]
[400093233,1767093038481,-500.0,0.00022191,2]
[400093234,1767093038491,-500.0,0.00022191,2]
[400093235,1767093038501,-500.0,0.00022191,2]
[400093236,1767093038510,-500.0,0.00022191,2]
[400093237,1767093038530,-500.0,0.00022191,2]
[400093238,1767093038540,-500.0,0.00022191,2]
[400093239,1767093038550,-500.0,0.00022191,2]
[400093240,1767093038561,-498.64088611,0.00022191,2]
[400093241,1767093038571,-500.0,0.00022191,2]
[400093242,1767093038580,-1195.7,0.00022191,2]
[400093243,1767093038590,-500.0,0.00022191,2]
[400093244,1767093038600,-250.0,0.00022224,2]
[400093245,1767093038610,-200.0,0.00022224,2]
[400093246,1767093038620,-894.3685583,0.00022465,2]
[400093247,1767093038629,-998.01,0.00022465,2]
[400093248,1767093038639,-500.0,0.00022465,2]
[400093249,1767093038650,-500.0,0.00022465,2]
[400093250,1767093038660,-151.0,0.00022465,2]
[400093251,1767093038670,-151.0,0.00022465,2]
[400093252,1767093038680,-151.0,0.00022465,2]
[400093253,1767093038690,-500.0,0.00022465,2]
[400093254,1767093038700,-151.0,0.00022465,2]
[400093255,1767093038709,-246.945504,0.00022465,2]
[400093256,1767093038719,-151.0,0.00022465,2]
[400093257,1767093038729,-500.0,0.00022465,2]
[400093258,1767093038739,-151.0,0.00022465,2]
[400093259,1767093038748,-151.000001,0.00022465,2]
[400093260,1767093038758,-171.190953,0.00022465,2]
[400093261,1767093038768,-171.190953,0.00022465,2]
[400093262,1767093038778,-171.190953,0.00022465,2]
[400093263,1767093038788,-171.190953,0.00022465,2]
[400093264,1767093038798,-1216.12,0.00022465,2]
[400093265,1767093038807,-500.0,0.00022465,2]
[400093266,1767093038816,-151.0,0.00022465,2]
[400093267,1767093038826,-151.0,0.00022465,2]
[400093268,1767093038835,-151.0,0.00022465,2]
[400093269,1767093038845,-569.34807645,0.00022465,2]
[400093270,1767093038854,-505.79587884,0.00022465,2]
[400093271,1767093038864,-500.0,0.00022465,2]
[400093272,1767093038873,-500.0,0.00022465,2]
[400093273,1767093038884,-500.15351,0.00022465,2]
[400093274,1767093038895,-500.15351,0.00022465,2]
[400093275,1767093038904,-500.15351,0.00022465,2]
[400093276,1767093038914,-500.15351,0.00022465,2]
[400093277,1767093038923,-504.4,0.00022465,2]
[400093278,1767093038933,-500.0,0.00022465,2]
[400093279,1767093038942,-500.0,0.00022465,2]
[400093280,1767093038952,-500.0,0.00022465,2]
[400093281,1767093038961,-500.0,0.00022465,2]
[400093282,1767093038971,-500.0,0.00022465,2]
[400093283,1767093038981,-500.0,0.00022465,2]
[400093284,1767093038990,-1195.7,0.00022465,2]
[400093285,1767093039000,-592.77633965,0.00022465,2]
[400093286,1767093039010,-1055.258506,0.00022465,2]
[400093287,1767093039019,-1055.258506,0.00022465,2]
[400093288,1767093039029,-1055.258506,0.00022465,2]
[400093289,1767093039038,-1055.258506,0.00022465,2]
[400093290,1767093039048,-151.0,0.00022465,2]
[400093291,1767093039058,-151.0,0.00022465,2]
[400093292,1767093039068,-151.0,0.00022465,2]
[400093293,1767093039078,-151.0,0.00022465,2]
[400093294,1767093039087,-300.0,0.00022466,2]
[400093295,1767093039099,-260.0,0.0002252,2]
[400093296,1767093039110,-290.00478083,0.00022562,2]
[400093297,1767093039119,-894.3685583,0.00022739,2]
[400093298,1767093039129,-998.01,0.00022739,2]
[400093299,1767093039138,-500.0,0.00022739,2]
[400093300,1767093039148,-500.0,0.00022739,2]
[400093301,1767093039158,-1216.12,0.00022739,2]
[400093302,1767093039167,-500.0,0.00022739,2]
[400093303,1767093039177,-500.0,0.00022739,2]
[400093304,1767093039187,-500.0,0.00022739,2]
[400093305,1767093039196,-500.0,0.00022739,2]
[400093306,1767093039206,-500.0,0.00022739,2]
[400093307,1767093039215,-500.0,0.00022739,2]
[400093308,1767093039225,-1195.7,0.00022739,2]
[400093309,1767093039234,-399.24612443,0.00023013,2]
[400093310,1767093039243,-998.01,0.00023013,2]
[400093311,1767093039252,-500.0,0.00023013,2]
[400093312,1767093039262,-588.47770235,0.00023013,2]
[400093313,1767093039272,-1216.12,0.00023013,2]
[400093314,1767093039281,-500.0,0.00023013,2]
[400093315,1767093039291,-500.0,0.00023013,2]
[400093316,1767093039301,-500.0,0.00023013,2]
[400093317,1767093039310,-500.0,0.00023013,2]
[400093318,1767093039319,-500.0,0.00023013,2]
[400093319,1767093039329,-223.2,0.00023013,2]
[400093320,1767093039339,-1195.7,0.00023013,2]
[400093321,1767093039348,-450.0,0.00023014,2]
[400093322,1767093039363,-172.96149317,0.0002305,5]
[400093323,1767093039373,-360.0,0.00023068,2]
[400093324,1767093039383,-285.0,0.00023272,2]
[400093325,1767093039393,-998.01,0.00023287,2]
[400093326,1767093039404,-500.0,0.00023287,2]
[400093327,1767093039413,-1216.12,0.00023287,2]
[400093328,1767093039423,-500.0,0.00023287,2]
[400093329,1767093039433,-500.0,0.00023287,2]
[400093330,1767093039442,-500.0,0.00023287,2]
[400093331,1767093039453,-513.16,0.00023287,2]
[400093332,1767093039462,-500.0,0.00023287,2]
[400093333,1767093039472,-1195.7,0.00023287,2]
[400093334,1767093039481,-347.65,0.0002329,2]
[400093335,1767093039491,-500.0,0.00023363,2]
[400093336,1767093039500,-998.01,0.00023561,2]
[400093337,1767093039509,-1216.12,0.00023561,2]
[400093338,1767093039519,-500.0,0.00023561,2]
[400093339,1767093039528,-500.0,0.00023561,2]
[400093340,1767093039538,-500.0,0.00023561,2]
[400093341,1767093039547,-500.0,0.00023561,2]
[400093342,1767093039556,-1195.7,0.00023561,2]
[400093343,1767093039566,-302.70127807,0.00023562,2]
[400093344,1767093039575,-1781.41759754,0.00023605,2]
[400093345,1767093039585,-460.0,0.00023616,2]
[400093346,1767093039594,-151.0,0.000237,5]
[400093347,1767093039603,-998.01,0.00023835,2]
[400093348,1767093039612,-200.0,0.00023835,2]
[400093349,1767093039622,-200.0,0.00023835,2]
[400093350,1767093039631,-200.0,0.00023835,2]
[400093351,1767093039641,-200.0,0.00023835,2]
[400093352,1767093039651,-200.0,0.00023835,2]
[400093353,1767093039661,-200.0,0.00023835,2]
[400093354,1767093039670,-200.0,0.00023835,2]
[400093355,1767093039679,-200.0,0.00023835,2]
[400093356,1767093039689,-1216.12,0.00023835,2]
[400093357,1767093039699,-500.0,0.00023835,2]
[400093358,1767093039708,-500.0,0.00023835,2]
[400093359,1767093039718,-500.0,0.00023835,2]
[400093360,1767093039727,-500.0,0.00023835,2]
[400093361,1767093039736,-1195.7,0.00023835,2]
[400093362,1767093039745,-1000.0,0.00023982,10]
[400093363,1767093039755,-791.0,0.00023982,10]
[400093364,1767093039764,-1395.06,0.00024,14]
[400093365,1767093039774,-1041.66666667,0.00024,10]
[400093366,1767093039783,-436.38,0.00024,7]
[400093367,1767093039792,-151.0,0.00024,6]
[400093368,1767093039801,-500.0,0.00024009,2]
[400093369,1767093039810,-908.4410556,0.00024077,2]
[400093370,1767093039819,-3000.0,0.000241,2]
[400093371,1767093039828,-998.01,0.00024109,2]
[400093372,1767093039837,-200.0,0.00024109,2]
[400093373,1767093039847,-1216.12,0.00024109,2]
[400093374,1767093039856,-500.0,0.00024109,2]
[400093375,1767093039866,-500.0,0.00024109,2]
[400093376,1767093039875,-500.0,0.00024109,2]
[400093377,1767093039885,-500.0,0.00024109,2]
[400093378,1767093039896,-1195.7,0.00024109,2]
[400093379,1767093039905,-3000.0,0.0002411,2]
[400093380,1767093039914,-3000.0,0.0002412,2]
[400093381,1767093039923,-3466.542625,0.0002413,2]
[400093382,1767093039932,-560.0,0.00024164,2]
[400093383,1767093039941,-329.7690604,0.00024179,2]
[400093384,1767093039950,-236.7373933,0.00024179,2]
[400093385,1767093039960,-7202.36,0.000242,2]
[400093387,1767093039969,-151.0,0.000242,5]
[400093389,1767093039978,-151.0,0.000242,7]
[400093391,1767093039987,-162.87917481,0.00024374,2]
[400093393,1767093039997,-998.01,0.00024383,2]
[400093394,1767093040006,-200.0,0.00024383,2]
[400093396,1767093040015,-1216.12,0.00024383,2]
[400093400,1767093040028,-500.0,0.00024383,2]
[400093401,1767093040037,-500.0,0.00024383,2]